Cogmind - Beta 9.5 @@@ ROGUE MODE // 2020.04.11 @ 15:35:59 Player: 3.14 Result: Destroyed by Y-72 Warden with Railgun Performance ------------- Evolutions (7) 3500 Regions Visited (22) 4400 Robots Destroyed (203) 1015 Value Destroyed (8695) 8695 Prototype IDs (26) 520 Alien Tech Used (2) 400 Bonus (5348) 5348 TOTAL SCORE: 23878 Bonus ------- High Alert Combat Kills 893 Follower Combat Kills 840 Entered Garrisons 200 Used RIF Installer 500 Met Zhirov 300 Met Warlord at Base 500 MAIN.C Attacked Warlord 500 Warlord Defense Kill 2298 Friendly Fire -683 Cogmind --------- Core Integrity 0/1300 Matter 228/300 Energy 100/100 System Corruption 7% Temperature Cool (9) Movement Treading (160) Location -3/Research Parts ------- > --- POWER (2) -------- (None) > --- PROPULSION (6) --- Medium Treads > --- UTILITY (7) ------ Improved Salvage Targeting Computer Advanced Melee Analysis Suite Hacking Suite > --- WEAPON (6) ------- Kinetic Spear > --- INVENTORY (4) ---- Light Antimatter Reactor Improved Cooling System Plasma Rifle Railgun Peak State ------------ > --- POWER ------------ Micro Fission Core Light Antimatter Reactor > --- PROPULSION ------- Improved Treads Armored Treads Armored Medium Treads Armored Medium Treads Armored Medium Treads Advanced Medium Treads > --- UTILITY ---------- Experimental Cooling System High-capacity Storage Unit High-capacity Storage Unit Experimental Targeting Computer Improved Medium Armor Plating > --- WEAPON ----------- BFG-9k Vortex Edition > --- INVENTORY -------- Vortex Chain Reactor Improved Target Analyzer Improved Medium Armor Plating Improved Medium Armor Plating Layered Light Armor Plating Medium Reflective Plating Hacking Suite System Purifier Long-range Tractor Beam Gauss Rifle Heavy Rocket Launcher Heavy Rocket Launcher Axe [Rating: 148] Favorites ----------- Power Antimatter Reactor Engine Heavy Deuterium Engine Power Core Neutrino Core Reactor Antimatter Reactor Propulsion Armored Medium Treads Treads Armored Medium Treads Leg Flexi-carbon Leg Hover Unit Antigrav Array Flight Unit Cooled Nuclear Pulse Thruster Utility High-capacity Storage Unit Device Improved Cooling System Storage High-capacity Storage Unit Processor Experimental Targeting Computer Hackware Hacking Suite Protection Hardened Medium Armor Plating Weapon Gauss Rifle Energy Gun Tesla Rifle Energy Cannon BFG-9k Vortex Edition Ballistic Gun Gauss Rifle Ballistic Cannon Enhanced Gauss Cannon Launcher Heavy Rocket Launcher Slashing Weapon Axe Piercing Weapon Kinetic Spear Build | -11 -10 -10 -10 -9 -8 -7 -6 -5 -5 -5 -5 -4 -4 -4 -4 -4 -4 -4 -3 -3 -3 -3 ------- Run | Scr Mat Min Exi Min Mat Fac Fac Fac Upp Upp War Pro Fac Was Fac Upp Upp Zhi Pro Res Gar Res Slots Evolved 14 | . . . . . 4 2 2 2 . . . . 2 . . . . . . 2 . . Power 1 | . . . . . . . . . . . . . 1 . . . . . . . . . Propulsion 4 | . . . . . 1 1 1 1 . . . . . . . . . . . . . . Utility 5 | . . . . . 1 1 . . . . . . 1 . . . . . . 2 . . Weapon 4 | . . . . . 2 . 1 1 . . . . . . . . . . . . . . Parts Attached 275 | 8 17 . . 1 18 18 5 52 12 15 31 2 10 22 4 1 1 11 9 27 . 11 Power 18 | 1 1 . . . 1 1 . 2 . . 1 . 2 3 . . . 2 . 3 . 1 Engine 7 | 1 1 . . . 1 1 . 2 . . . . . . . . . . . 1 . . Core 4 | . . . . . . . . . . . 1 . 1 1 . . . 1 . . . . Reactor 7 | . . . . . . . . . . . . . 1 2 . . . 1 . 2 . 1 Propulsion 71 | 2 1 . . . 4 5 2 14 5 4 7 1 2 4 1 . . . . 13 . 6 Treads 62 | 2 1 . . . 4 5 2 14 5 4 7 1 2 4 1 . . . . 7 . 3 Leg 1 | . . . . . . . . . . . . . . . . . . . . 1 . . Wheel . | . . . . . . . . . . . . . . . . . . . . . . . Hover 1 | . . . . . . . . . . . . . . . . . . . . 1 . . Flight 7 | . . . . . . . . . . . . . . . . . . . . 4 . 3 Utility 73 | 3 3 . . 1 8 4 2 11 . 1 7 . 2 7 2 1 . 8 2 7 . 4 Device 19 | 1 . . . . 2 1 . 5 . . 4 . . 1 . . . 1 2 2 . . Storage 15 | 2 3 . . 1 4 . 2 . . . . . . 1 . . . 1 . . . 1 Processor 6 | . . . . . . . . . . . . . 1 . 1 1 . . . 1 . 2 Hackware 3 | . . . . . . . . 1 . . . . . . . . . . . 1 . 1 Protection 30 | . . . . . 2 3 . 5 . 1 3 . 1 5 1 . . 6 . 3 . . Artifact . | . . . . . . . . . . . . . . . . . . . . . . . Weapon 113 | 2 12 . . . 5 8 1 25 7 10 16 1 4 8 1 . 1 1 7 4 . . Energy Gun 24 | 1 3 . . . 2 3 . 3 2 3 2 1 2 . . . 1 1 . . . . Energy Cannon 2 | . . . . . . . . . . . 1 . . 1 . . . . . . . . Ballistic Gun 65 | 1 6 . . . 3 5 1 18 5 2 8 . 2 7 1 . . . 6 . . . Ballistic Cannon 4 | . . . . . . . . . . 3 1 . . . . . . . . . . . Launcher 10 | . 3 . . . . . . 2 . 2 2 . . . . . . . 1 . . . Special Weapon . | . . . . . . . . . . . . . . . . . . . . . . . Impact Weapon . | . . . . . . . . . . . . . . . . . . . . . . . Slashing Weapon 6 | . . . . . . . . 2 . . 2 . . . . . . . . 2 . . Piercing Weapon 2 | . . . . . . . . . . . . . . . . . . . . 2 . . Special Melee Weapon . | . . . . . . . . . . . . . . . . . . . . . . . Unidentified Prototypes 19 | . . . . . . 1 . 3 . . 3 . 1 . . . . 5 . 4 . 2 Parts Lost 28 | . 1 . . . 1 . . 5 1 2 1 . 1 2 . . . . . 7 2 5 Power 2 | . . . . . . . . 1 . . . . . . . . . . . 1 . . Propulsion 15 | . . . . . . . . 1 1 1 . . . 1 . . . . . 4 2 5 Utility 4 | . . . . . . . . 2 . 1 . . . 1 . . . . . . . . Weapon 7 | . 1 . . . 1 . . 1 . . 1 . 1 . . . . . . 2 . . Highest Loss Streak 2 | . 1 . . . 1 . . 2 1 2 1 . 1 2 . . . . . 2 2 2 Average Slot Usage (%) 91 | . 98 100 100 100 97 99 100 99 99 99 99 100 99 69 89 89 88 88 89 56 16 19 Engine 4 | . 14 14 14 14 9 7 6 5 5 5 4 . . . . . . . . . . . Core 1 | . . . . . . . . . . . . 5 8 1 . . . 3 5 2 . . Reactor 2 | . . . . . . . . . . . . . 1 6 10 10 10 6 5 2 . . Treads 27 | . 27 28 28 28 26 30 33 34 34 34 35 35 31 21 21 21 21 21 21 12 11 4 Device 3 | . . . . . 2 5 6 5 5 5 5 5 5 4 5 5 5 1 4 2 . . Storage 12 | . 28 28 28 28 18 15 13 11 11 11 11 11 10 5 5 5 5 6 5 2 . . Processor 2 | . . . . . . . . . . . . . 5 1 1 6 10 10 10 5 . . Protection 4 | . . . . . 4 8 6 3 5 5 4 5 5 6 13 8 5 7 5 5 . . Energy Gun 2 | . 6 . . . 3 3 . . 8 5 7 3 5 1 . . 1 7 3 . . . Ballistic Gun 24 | . 20 28 28 28 32 25 33 32 21 17 16 29 25 17 31 31 29 23 25 13 . . Naked Turns 35 | . . . . . . . . . . . . . . 33 . . . . . 2 . . Heaviest Build 139 | 14 23 23 23 31 66 77 96 106 110 121 115 112 116 139 113 105 97 101 111 119 2 14 Greatest Support 194 | 40 40 40 40 40 60 107 127 163 161 151 164 158 158 194 194 194 194 194 194 194 3 23 Greatest Overweight (x) 1 | . . . . . 1 . . . . . . . . 1 . . . . . . . . Average Overweight (x) . | . . . . . . . . . . . . . . . . . . . . . . . Largest Inventory Capacity 22 | 8 12 12 12 14 22 18 20 20 20 20 20 20 20 20 12 12 12 12 12 12 4 4 Average Capacity 15 | 5 9 12 12 13 17 18 18 20 20 20 20 20 20 12 12 12 12 12 12 7 4 4 Most Carried 20 | 4 12 12 12 12 18 18 20 20 20 20 20 20 20 19 12 12 12 12 12 11 3 4 Average Carried 14 | 2 8 12 12 12 12 17 16 19 19 19 19 20 19 11 12 10 11 11 11 6 3 3 Final Capacity 20 | 8 12 12 12 14 18 18 20 20 20 20 20 20 20 12 12 12 12 12 12 4 4 4 Final Carried 20 | 4 12 12 12 12 17 18 20 20 19 20 20 20 19 12 12 11 12 12 12 3 3 4 Class Distribution -------------------- 49% | Scavenger-Executioner 20% | Scavenger-Mutant 12% | Mutant 7% | Scavenger-Tank 5% | Tank Dominant Class ---------------- Mutant | -10/Materials Scavenger-Mutant | -10/Mines Scavenger-Mutant | -10/Exiles Mutant | -9/Mines Scavenger-Tank | -8/Materials Scavenger-Tank | -7/Factory Tank | -6/Factory Scavenger-Executioner | -5/Factory Scavenger-Mutant | -5/Upper Caves Scavenger-Executioner | -5/Upper Caves Scavenger-Mutant | -5/Warlord Scavenger-Executioner | -4/Proximity Caves Scavenger-Executioner | -4/Factory Scavenger-Executioner | -4/Waste Scavenger-Executioner | -4/Factory Scavenger-Executioner | -4/Upper Caves Scavenger-Executioner | -4/Upper Caves Scavenger-Executioner | -4/Zhirov Scavenger-Executioner | -3/Proximity Caves Scavenger-Executioner | -3/Research Mutant | -3/Garrison Mutant | -3/Research Resources | -11 -10 -10 -10 -9 -8 -7 -6 -5 -5 -5 -5 -4 -4 -4 -4 -4 -4 -4 -3 -3 -3 -3 ----------- Run | Scr Mat Min Exi Min Mat Fac Fac Fac Upp Upp War Pro Fac Was Fac Upp Upp Zhi Pro Res Gar Res Matter Collected 7593 | 278 198 55 . 10 321 169 381 2278 509 244 689 186 484 315 107 100 146 120 354 585 . 64 Remotely 1429 | . . . . . . . . 606 . . 480 . . . . . . . . 343 . . Salvage Created 11211 | 78 413 . . . 782 330 475 3272 622 308 705 373 1206 204 321 . 162 169 704 1023 . 64 Parts 478 | 3 33 . . . 38 17 19 153 23 19 22 7 50 . 11 . 7 3 30 36 . 7 Haulers Intercepted 10 | . 2 . . . . 2 1 2 . . . . 1 . 1 . . . . 1 . . Recyclers Shooed 10 | . 1 . . . . . . 6 . . . . 3 . . . . . . . . . Parts Field Recycled . | . . . . . . . . . . . . . . . . . . . . . . . Retrieved Matter . | . . . . . . . . . . . . . . . . . . . . . . . Parts Self-Destructed 208 | . . . . . . . . . 17 2 134 5 . . . 7 12 3 28 . . . Prevented 33 | . . . . . . . . . 12 12 8 1 . . . . . . . . . . Kills | -11 -10 -10 -10 -9 -8 -7 -6 -5 -5 -5 -5 -4 -4 -4 -4 -4 -4 -4 -3 -3 -3 -3 ------- Run | Scr Mat Min Exi Min Mat Fac Fac Fac Upp Upp War Pro Fac Was Fac Upp Upp Zhi Pro Res Gar Res Combat Hostiles Destroyed 147 | . 12 . . . 9 3 4 42 9 10 17 8 7 1 3 . 2 . 10 9 . 1 Melee 5 | . . . . . . . . . . . 1 . . . . . . . . 3 . 1 Guns 102 | . 8 . . . 9 3 4 36 7 1 4 2 7 . 3 . 2 . 10 6 . . Cannons 2 | . . . . . . . . . . 1 . . . 1 . . . . . . . . AOE 35 | . 4 . . . . . . 6 . 7 12 6 . . . . . . . . . . Classes Destroyed 19 | 1 4 . . . 3 . . 5 . . 3 . 1 1 1 . . . . . . . Worker 9 | . . . . . 1 . . 5 . . . . 3 . . . . . . . . . Builder 13 | . 1 . . . . . . 7 . . . . 2 . 1 . . . . 1 . 1 Tunneler 1 | . . . . . . . . . . . . . 1 . . . . . . . . . Hauler 10 | . 2 . . . . 2 1 2 . . . . 1 . 1 . . . . 1 . . Recycler 19 | 1 . . . . 3 1 1 6 . . . . 4 . . . . . . 3 . . Mechanic 2 | . . . . . . . . 1 . . 1 . . . . . . . . . . . Swarmer 21 | . 6 . . . . . . 5 . 5 1 . . . . . . . . 3 . 1 Saboteur 1 | . . . . . . . . . . . 1 . . . . . . . . . . . Grunt 68 | . 6 . . . 5 3 3 20 5 3 9 7 . . . . 1 . 3 3 . . Brawler 6 | . . . . . 1 . . 2 . . . . . . . . . . 2 1 . . Duelist 6 | . . . . . . . . 2 2 . 1 . . . . . . . 1 . . . Sentry 13 | . . . . . 3 . 1 1 2 . . 1 3 . 1 . . . 1 . . . Hunter 9 | . . . . . . . . 6 . 1 . . 2 . . . . . . . . . Programmer 14 | . . . . . . . . 5 . . . . 2 . 1 . 1 . 3 2 . . Behemoth 2 | . . . . . . . . 1 . 1 . . . . . . . . . . . . Compactor 1 | . . . . . . . . . . . . . . 1 . . . . . . . . Striker 1 | . . . . . . . . . . . 1 . . . . . . . . . . . Executioner 4 | . . . . . . . . . . . 4 . . . . . . . . . . . Wasp 1 | . . . . . . . . . . . . . . . . . . . 1 . . . Martyr 2 | . . . . . . . . . . . . . . . 1 . 1 . . . . . Best Kill Streak 11 | 1 5 . . . 7 2 4 11 4 5 10 4 6 1 4 . 1 . 4 9 . 1 Combat Bots Only 9 | . 3 . . . 3 2 3 8 4 5 9 4 2 1 2 . 1 . 4 6 . 1 Max Kills in Single Turn 5 | 1 3 . . . 2 1 1 3 2 3 4 2 5 1 2 . 1 . 2 1 . 1 Gunslinging 1 | . . . . . 1 . . 1 1 . . . . . . . . . 1 . . . Exploded 4 | . 3 . . . . . . 2 . 3 4 2 . . . . . . . . . . Melee 1 | . . . . . . . . . . . 1 . . . . . . . . 1 . 1 Uniques/NPCs Destroyed . | . . . . . . . . . . . . . . . . . . . . . . . Combat | -11 -10 -10 -10 -9 -8 -7 -6 -5 -5 -5 -5 -4 -4 -4 -4 -4 -4 -4 -3 -3 -3 -3 -------- Run | Scr Mat Min Exi Min Mat Fac Fac Fac Upp Upp War Pro Fac Was Fac Upp Upp Zhi Pro Res Gar Res Damage Taken 14239 | 12 382 . . . 608 180 258 3009 980 543 887 363 593 117 52 618 260 . 281 3406 761 929 Core 1734 | 6 89 . . . 60 . . 99 67 57 . 28 21 . 21 68 . . 8 648 173 389 Absorbed by Shields 798 | . . . . . . . . . . . 29 . . . . . . . 159 610 . . Core Remaining (%) 87 | 97 . . . 62 89 100 100 . . . . 74 . . . . . . 89 . . . Volleys Fired 353 | 3 34 . . . 32 10 11 97 23 16 20 11 21 11 4 4 6 19 16 15 . . Largest 6 | 2 2 . . . 4 4 5 6 6 6 6 6 6 6 6 6 6 1 6 6 . . Hottest 332 | 60 80 . . . 103 180 135 170 158 332 300 212 260 300 180 180 180 50 234 195 . . Shots Fired 1428 | 6 64 . . . 124 40 55 507 76 37 65 26 122 29 24 24 36 19 84 90 . . Gun 1381 | 6 60 . . . 124 40 55 498 76 27 56 18 122 22 24 24 36 19 84 90 . . Cannon 12 | . . . . . . . . . . 4 1 . . 7 . . . . . . . . Launcher 35 | . 4 . . . . . . 9 . 6 8 8 . . . . . . . . . . Special . | . . . . . . . . . . . . . . . . . . . . . . . Kinetic 1227 | 3 54 . . . 111 28 55 483 48 4 56 16 99 20 24 24 36 . 76 90 . . Thermal 55 | . . . . . . 12 . . . . . . 16 . . . . 19 8 . . . Explosive 35 | . 4 . . . . . . 9 . 6 8 8 . . . . . . . . . . Electromagnetic 103 | 3 6 . . . 13 . . 15 28 27 . 2 7 2 . . . . . . . . Entropic 8 | . . . . . . . . . . . 1 . . 7 . . . . . . . . Robot Hit Streak 35 | 6 14 . . . 12 16 23 25 23 22 24 19 35 18 11 21 20 23 32 25 . . Robot Miss Streak 4 | . 2 . . . 3 2 1 4 2 1 3 1 1 1 3 1 4 . 2 3 . . Penetration Max 1 | . . . . . . . . 1 1 . 1 . 1 . 1 . . . 1 1 . . Secondary Targets 29 | . 1 . . . 4 . 2 8 2 . 2 . . . 2 . 2 . 4 2 . . Max Gunslinging Chain 2 | . 1 . . . 1 . 1 2 1 . 1 . . . 1 . 1 . 1 1 . . Shots Hit Robots 1066 | 6 46 . . . 90 29 41 355 61 34 56 24 76 18 16 23 25 19 65 75 1 6 Core Hits 509 | 3 28 . . 1 32 13 16 168 22 17 45 27 40 2 10 2 11 3 31 37 . 1 Critical Hits 30 | . . . . . 3 . 2 10 . 1 1 . 1 1 . . 1 . 6 3 . 1 Critical Kills 12 | . . . . . 2 . 1 4 . . . . . . . . . . 4 1 . . Critical Parts Destroyed 14 | . . . . . 1 . 1 6 . . 1 . 1 . . . 1 . . 2 . 1 Melee Attacks 60 | . . . . . . . . 19 . . . . . . . . . . . 15 1 25 Impact . | . . . . . . . . . . . . . . . . . . . . . . . Slashing 34 | . . . . . . . . 19 . . . . . . . . . . . 15 . . Piercing 26 | . . . . . . . . . . . . . . . . . . . . . 1 25 Sneak Attacks 4 | . . . . . . . . . . . . . . . . . . . . 3 . 1 Combat Hostiles . | . . . . . . . . . . . . . . . . . . . . . . . Follow-up Attacks . | . . . . . . . . . . . . . . . . . . . . . . . Damage Inflicted 30638 | 111 669 . . 5 818 472 769 8283 1425 1520 3393 1474 2270 3408 418 481 595 374 1585 2254 36 278 Guns 19340 | 61 424 . . . 798 472 769 6320 1320 346 1296 376 1653 210 418 481 595 374 1585 1842 . . Cannons 3337 | . . . . . . . . . . 139 . . . 3198 . . . . . . . . Explosions 7174 | 47 243 . . . . . . 1946 105 1035 2097 1098 603 . . . . . . . . . Melee 725 | . . . . . . . . . . . . . . . . . . . . 412 35 278 Ramming 62 | 3 2 . . 5 20 . . 17 . . . . 14 . . . . . . . 1 . Kinetic 17146 | 21 345 . . . 716 323 769 6154 803 139 1296 334 1256 206 418 481 595 . 1448 1842 . . Thermal 1238 | 47 . . . . . 149 . 52 105 . . . 374 . . . . 374 137 . . . Explosive 6970 | . 243 . . . . . . 1894 . 1035 2097 1098 603 . . . . . . . . . Electromagnetic 1299 | 40 79 . . . 82 . . 166 517 346 . 42 23 4 . . . . . . . . Impact . | . . . . . . . . . . . . . . . . . . . . . . . Slashing 412 | . . . . . . . . . . . . . . . . . . . . 412 . . Piercing 313 | . . . . . . . . . . . . . . . . . . . . . 35 278 Entropic 3198 | . . . . . . . . . . . . . . 3198 . . . . . . . . Highest Corruption 7 | . . . . . . . . 3 3 3 6 . . . . . . . . 2 3 7 Average Corruption 3 | . . . . . . . . 2 3 3 4 . . . . . . . . 1 3 5 Corruption Purged . | . . . . . . . . . . . . . . . . . . . . . . . Effects 53 | . . . . . . . . 12 10 13 1 . . . . . . . . 5 1 11 Message Errors 7 | . . . . . . . . . 2 3 . . . . . . . . . . . 2 Matter Fused 13 | . . . . . . . . 2 3 5 . . . . . . . . . . 1 2 Heat Flow Errors 4 | . . . . . . . . . . 2 . . . . . . . . . 2 . . Energy Discharges 5 | . . . . . . . . 3 2 . . . . . . . . . . . . . Data Loss (minor) 9 | . . . . . . . . 1 1 2 1 . . . . . . . . 1 . 3 Targeting Errors 14 | . . . . . . . . 5 2 1 . . . . . . . . . 2 . 4 Weapon Failures 1 | . . . . . . . . 1 . . . . . . . . . . . . . . Overload Shots . | . . . . . . . . . . . . . . . . . . . . . . . Overflow Damage 449 | . . . . . . . . 77 . 66 62 23 124 . . . . . . 1 . 96 Projectiles . | . . . . . . . . . . . . . . . . . . . . . . . Explosions 352 | . . . . . . . . 77 . 66 62 23 124 . . . . . . . . . Melee 97 | . . . . . . . . . . . . . . . . . . . . 1 . 96 Knockbacks 3 | . . . . 1 1 . . 1 . . . . . . . . . . . . . . Impact 3 | . . . . 1 1 . . 1 . . . . . . . . . . . . . . Kinetic . | . . . . . . . . . . . . . . . . . . . . . . . Secondary . | . . . . . . . . . . . . . . . . . . . . . . . Self-Inflicted Damage 318 | 13 9 . . . . . . 187 . . . 22 87 . . . . . . . . . Shots 7 | 1 1 . . . . . . 3 . . . 1 1 . . . . . . . . . Rammed 14 | 1 2 . . 2 2 . 1 1 . . . . 2 . . . . . . . 2 1 Targets Rammed 15 | 1 2 . . 2 2 . 1 2 . . . . 2 . . . . . . . 2 1 Kicked . | . . . . . . . . . . . . . . . . . . . . . . . Crushed 1 | . . . . . . . . 1 . . . . . . . . . . . . . . Highest Temperature 372 | 32 18 . . . 229 90 48 56 24 215 184 15 150 371 133 126 39 . 372 193 . . Average Temperature 65 | 20 9 . . . 81 34 11 9 9 97 101 10 38 132 60 62 26 . 127 87 . . Received Heat Transfer 1926 | . 57 . . . 297 99 108 549 243 75 36 60 36 . 9 36 . . 12 195 12 102 Effects 2 | . . . . . 1 . . . . . . . . . . . . . 1 . . . Energy Bleed 2 | . . . . . 1 . . . . . . . . . . . . . 1 . . . Siege Activations . | . . . . . . . . . . . . . . . . . . . . . . . Robots Corrupted 3 | . . . . . . . . . 2 1 . . . . . . . . . . . . Combat Hostiles 3 | . . . . . . . . . 2 1 . . . . . . . . . . . . Parts Fried 9 | . . . . . . . . 2 2 5 . . . . . . . . . . . . Impact Corruptions . | . . . . . . . . . . . . . . . . . . . . . . . Robots Melted . | . . . . . . . . . . . . . . . . . . . . . . . Combat Hostiles . | . . . . . . . . . . . . . . . . . . . . . . . Parts Melted 2 | . . . . . . . . . . . 2 . . . . . . . . . . . Heat Transferred 2050 | 50 . . . . . 296 . 50 100 . . . 555 . . . . 703 296 . . . Parts Sabotaged . | . . . . . . . . . . . . . . . . . . . . . . . Parts Stolen . | . . . . . . . . . . . . . . . . . . . . . . . Parts Stripped . | . . . . . . . . . . . . . . . . . . . . . . . Power Chain Reactions 2 | 1 . . . . . . . . 1 . . . . . . . . . . . . . Missiles Intercepted . | . . . . . . . . . . . . . . . . . . . . . . . Alert | -11 -10 -10 -10 -9 -8 -7 -6 -5 -5 -5 -5 -4 -4 -4 -4 -4 -4 -4 -3 -3 -3 -3 ------- Run | Scr Mat Min Exi Min Mat Fac Fac Fac Upp Upp War Pro Fac Was Fac Upp Upp Zhi Pro Res Gar Res Peak Influence 987 | 5 259 66 . . 191 205 91 987 . . . . 337 173 287 . . . . 193 116 121 Average Influence 175 | 1 107 66 . . 89 84 52 515 . . . . 196 52 108 . . . . 67 111 82 Maximum Alert Level 3 | . 1 . . . . 1 . 3 . . . . 1 . 1 . . . . . . . Low Security (%) 78 | 100 96 100 . 100 100 92 100 23 . . . . 59 100 70 . . . . 100 100 100 Level 1 6 | . 3 . . . . 7 . 5 . . . . 40 . 29 . . . . . . . Level 2 9 | . . . . . . . . 44 . . . . . . . . . . . . . . Level 3 5 | . . . . . . . . 27 . . . . . . . . . . . . . . Level 4 . | . . . . . . . . . . . . . . . . . . . . . . . Level 5 . | . . . . . . . . . . . . . . . . . . . . . . . High Security . | . . . . . . . . . . . . . . . . . . . . . . . Max Security . | . . . . . . . . . . . . . . . . . . . . . . . Squads Dispatched 32 | . 3 . . . 2 3 1 16 . . . . 2 . 2 . . . . 3 . . Investigation 8 | . 2 . . . 2 . 1 2 . . . . . . . . . . . 1 . . Extermination 3 | . . . . . . . . 2 . . . . 1 . . . . . . . . . Reinforcement 13 | . 1 . . . . . . 7 . . . . 1 . 2 . . . . 2 . . Assault 2 | . . . . . . . . 2 . . . . . . . . . . . . . . Garrison 6 | . . . . . . 3 . 3 . . . . . . . . . . . . . . Intercept . | . . . . . . . . . . . . . . . . . . . . . . . Construction Impeded 4 | . . . . . . . . 3 . . . . 1 . . . . . . . . . Haulers Reinforced 3 | . . . . . . . . 2 . . . . . . 1 . . . . . . . Stealth | -11 -10 -10 -10 -9 -8 -7 -6 -5 -5 -5 -5 -4 -4 -4 -4 -4 -4 -4 -3 -3 -3 -3 --------- Run | Scr Mat Min Exi Min Mat Fac Fac Fac Upp Upp War Pro Fac Was Fac Upp Upp Zhi Pro Res Gar Res Distress Signals 11 | . . . . . . . . 4 . . . . 1 . . . . . . 5 . 1 Communications Jammed . | . . . . . . . . . . . . . . . . . . . . . . . Distress Signals . | . . . . . . . . . . . . . . . . . . . . . . . Times Spotted 291 | . 19 . . . 11 7 4 61 14 10 29 8 13 6 3 6 6 . 10 57 12 15 Peak Tracking Total 19 | . 6 . . . 3 3 2 8 7 5 13 4 5 4 2 3 3 . 4 19 12 7 Tactical Retreats 21 | . 1 . . . . 1 . 4 2 . 2 . . . . . . . . 5 . 6 Traps | -11 -10 -10 -10 -9 -8 -7 -6 -5 -5 -5 -5 -4 -4 -4 -4 -4 -4 -4 -3 -3 -3 -3 ------- Run | Scr Mat Min Exi Min Mat Fac Fac Fac Upp Upp War Pro Fac Was Fac Upp Upp Zhi Pro Res Gar Res Traps Triggered 4 | . 1 . . . 1 . . 1 . . . . 1 . . . . . . . . . Indirectly . | . . . . . . . . . . . . . . . . . . . . . . . Trap Hack Attempts . | . . . . . . . . . . . . . . . . . . . . . . . Triggered . | . . . . . . . . . . . . . . . . . . . . . . . Disarmed . | . . . . . . . . . . . . . . . . . . . . . . . Reprogrammed 6 | . . . . . . . . 6 . . . . . . . . . . . . . . Reused 1 | . . . . . . . . 1 . . . . . . . . . . . . . . Traps Extracted . | . . . . . . . . . . . . . . . . . . . . . . . Installed . | . . . . . . . . . . . . . . . . . . . . . . . Triggered 10 | . . . . . . . . 1 . . 9 . . . . . . . . . . . Machines | -11 -10 -10 -10 -9 -8 -7 -6 -5 -5 -5 -5 -4 -4 -4 -4 -4 -4 -4 -3 -3 -3 -3 ---------- Run | Scr Mat Min Exi Min Mat Fac Fac Fac Upp Upp War Pro Fac Was Fac Upp Upp Zhi Pro Res Gar Res Machines Disabled 16 | . . . . . . . . 10 . . 1 . 4 . 1 . . . . . . . Max in Single Turn 7 | . . . . . . . . 7 . . 1 . 2 . . . . . . . . . Garrison Access 3 | . . . . . . . . 1 . . . . 1 . . . . . . . . 1 Machines Sabotaged . | . . . . . . . . . . . . . . . . . . . . . . . Garrisons Compromised . | . . . . . . . . . . . . . . . . . . . . . . . Overloaded Fab Kills . | . . . . . . . . . . . . . . . . . . . . . . . Fab Network Shutdowns . | . . . . . . . . . . . . . . . . . . . . . . . Hacking | -11 -10 -10 -10 -9 -8 -7 -6 -5 -5 -5 -5 -4 -4 -4 -4 -4 -4 -4 -3 -3 -3 -3 --------- Run | Scr Mat Min Exi Min Mat Fac Fac Fac Upp Upp War Pro Fac Was Fac Upp Upp Zhi Pro Res Gar Res Machines Accessed 40 | . 6 . 3 . 4 3 1 10 1 . 2 . 1 . . 1 . 4 1 1 . 2 Terminals 17 | . 4 . . . 3 2 . 6 . . . . . . . . . . 1 . . 1 Fabricators . | . . . . . . . . . . . . . . . . . . . . . . . Repair Stations 5 | . 1 . . . 1 1 . 2 . . . . . . . . . . . . . . Recycling Units 2 | . 1 . . . . . . 1 . . . . . . . . . . . . . . Scanalyzers . | . . . . . . . . . . . . . . . . . . . . . . . Garrison Access 5 | . . . . . . . 1 1 . . . . 1 . . . . . . 1 . 1 Total Hacks 110 | . 27 . 3 . 14 6 3 26 1 . 2 . 1 . . 1 . 17 2 2 . 5 Successful 77 | . 22 . 3 . 6 3 . 14 1 . 2 . 1 . . 1 . 17 1 1 . 5 Failed 33 | . 5 . . . 8 3 3 12 . . . . . . . . . . 1 1 . . Catastrophic 9 | . . . . . 1 2 1 4 . . . . . . . . . . . 1 . . Database Lockouts . | . . . . . . . . . . . . . . . . . . . . . . . Manual 25 | . 10 . . . 2 . . 8 . . . . . . . . . . 1 . . 4 Terminals 51 | . 13 . . . 12 4 . 17 . . . . . . . . . . 2 . . 3 Fabricators . | . . . . . . . . . . . . . . . . . . . . . . . Repair Stations 19 | . 11 . . . 2 2 . 4 . . . . . . . . . . . . . . Recycling Units 7 | . 3 . . . . . . 4 . . . . . . . . . . . . . . Scanalyzers . | . . . . . . . . . . . . . . . . . . . . . . . Garrison Access 9 | . . . . . . . 3 1 . . . . 1 . . . . . . 2 . 2 Terminal Hacks 46 | . 8 . 3 . 5 1 . 5 1 . 2 . . . . 1 . 17 1 . . 2 Record 10 | . . . 3 . . . . . . . 1 . . . . . . 5 1 . . . Part Schematic 5 | . 1 . . . . . . . . . . . . . . . . 4 . . . . Robot Analysis 9 | . 2 . . . 3 . . . . . . . . . . . . 4 . . . . Prototype ID Bank 4 | . . . . . . . . . . . . . . . . . . 4 . . . . Open Door 3 | . . . . . . . . . 1 . 1 . . . . 1 . . . . . . Level Access Points 1 | . . . . . . . . . . . . . . . . . . . . . . 1 Branch Access Points 2 | . . . . . 1 . . 1 . . . . . . . . . . . . . . Terminal Index 1 | . . . . . . . . 1 . . . . . . . . . . . . . . Unreport Threat 1 | . . . . . . . . 1 . . . . . . . . . . . . . . Locate Traps 3 | . 2 . . . . 1 . . . . . . . . . . . . . . . . Reprogram Traps 1 | . . . . . . . . 1 . . . . . . . . . . . . . . Recall Reinforcements 1 | . 1 . . . . . . . . . . . . . . . . . . . . . Zone Layout 5 | . 2 . . . 1 . . 1 . . . . . . . . . . . . . 1 Fabricator Hacks . | . . . . . . . . . . . . . . . . . . . . . . . Repair Station Hacks 17 | . 10 . . . 1 2 . 4 . . . . . . . . . . . . . . Scan Component 9 | . 5 . . . 1 1 . 2 . . . . . . . . . . . . . . Repair 8 | . 5 . . . . 1 . 2 . . . . . . . . . . . . . . Recycling Unit Hacks 4 | . 1 . . . . . . 3 . . . . . . . . . . . . . . Process 1 | . . . . . . . . 1 . . . . . . . . . . . . . . Retrieve Matter 2 | . . . . . . . . 2 . . . . . . . . . . . . . . Retrieve Components 1 | . 1 . . . . . . . . . . . . . . . . . . . . . Scanalyzer . | . . . . . . . . . . . . . . . . . . . . . . . Garrison Access Hacks 5 | . . . . . . . . 1 . . . . 1 . . . . . . 1 . 2 Unlock Access 2 | . . . . . . . . . . . . . . . . . . . . 1 . 1 Seal Access 3 | . . . . . . . . 1 . . . . 1 . . . . . . . . 1 Unauthorized Hacks 12 | . 8 . . . . . . 2 . . . . . . . . . . . . . 2 Terminals 4 | . 2 . . . . . . 1 . . . . . . . . . . . . . 1 Track 1 | . . . . . . . . . . . . . . . . . . . . . . 1 Assimilate 1 | . . . . . . . . 1 . . . . . . . . . . . . . . Botnet 2 | . 2 . . . . . . . . . . . . . . . . . . . . . Fabricators . | . . . . . . . . . . . . . . . . . . . . . . . Repair Stations . | . . . . . . . . . . . . . . . . . . . . . . . Recycling Units 1 | . 1 . . . . . . . . . . . . . . . . . . . . . Tunnel 1 | . 1 . . . . . . . . . . . . . . . . . . . . . Scanalyzers . | . . . . . . . . . . . . . . . . . . . . . . . Garrison Access . | . . . . . . . . . . . . . . . . . . . . . . . Data Cores Recovered . | . . . . . . . . . . . . . . . . . . . . . . . Used . | . . . . . . . . . . . . . . . . . . . . . . . Hacking Detections 26 | . 6 . . . 4 3 1 9 . . . . . . . . . . 1 1 . 1 Full Trace Events 5 | . . . . . 1 . 1 2 . . . . . . . . . . . 1 . . Feedback Events 1 | . . . . . . . . . . . . . . . . . . . . 1 . . Corruption 1 | . . . . . . . . . . . . . . . . . . . . 1 . . Feedback Blocked . | . . . . . . . . . . . . . . . . . . . . . . . Robot Schematics Acquired . | . . . . . . . . . . . . . . . . . . . . . . . Robots Built . | . . . . . . . . . . . . . . . . . . . . . . . Matter . | . . . . . . . . . . . . . . . . . . . . . . . Time . | . . . . . . . . . . . . . . . . . . . . . . . Total Robot Build Rating . | . . . . . . . . . . . . . . . . . . . . . . . Part Schematics Acquired 5 | . 1 . . . . . . . . . . . . . . . . 4 . . . . Parts Built . | . . . . . . . . . . . . . . . . . . . . . . . Matter . | . . . . . . . . . . . . . . . . . . . . . . . Time . | . . . . . . . . . . . . . . . . . . . . . . . Total Part Build Rating . | . . . . . . . . . . . . . . . . . . . . . . . Parts Repaired 7 | . 5 . . . . 1 . 1 . . . . . . . . . . . . . . Time 261 | . 130 . . . . 35 . 96 . . . . . . . . . . . . . . Parts Recycled . | . . . . . . . . . . . . . . . . . . . . . . . Recycled Matter 12 | . . . . . . . . 12 . . . . . . . . . . . . . . Retrieved Matter 12 | . . . . . . . . 12 . . . . . . . . . . . . . . Retrieved Components . | . . . . . . . . . . . . . . . . . . . . . . . Parts Scanalyzed . | . . . . . . . . . . . . . . . . . . . . . . . Part Schematics Acquired . | . . . . . . . . . . . . . . . . . . . . . . . Parts Damaged . | . . . . . . . . . . . . . . . . . . . . . . . Bothacking | -11 -10 -10 -10 -9 -8 -7 -6 -5 -5 -5 -5 -4 -4 -4 -4 -4 -4 -4 -3 -3 -3 -3 ------------ Run | Scr Mat Min Exi Min Mat Fac Fac Fac Upp Upp War Pro Fac Was Fac Upp Upp Zhi Pro Res Gar Res Used RIF Installer 1 | . . . . . . . . . . . . . . . . . . . . . 1 . Robots Hacked . | . . . . . . . . . . . . . . . . . . . . . . . Non-combat . | . . . . . . . . . . . . . . . . . . . . . . . Combat . | . . . . . . . . . . . . . . . . . . . . . . . Robot Hacks Applied . | . . . . . . . . . . . . . . . . . . . . . . . Relay Couplers Released . | . . . . . . . . . . . . . . . . . . . . . . . Robots Rewired 7 | . . . . . . . . . 2 . 5 . . . . . . . . . . . Allies Hacked . | . . . . . . . . . . . . . . . . . . . . . . . Hacks Repelled . | . . . . . . . . . . . . . . . . . . . . . . . Allies | -11 -10 -10 -10 -9 -8 -7 -6 -5 -5 -5 -5 -4 -4 -4 -4 -4 -4 -4 -3 -3 -3 -3 -------- Run | Scr Mat Min Exi Min Mat Fac Fac Fac Upp Upp War Pro Fac Was Fac Upp Upp Zhi Pro Res Gar Res Total Allies 25 | . . . . . . . . . 2 . 5 . . 18 . . . . . . . . Largest Group 18 | . . . . . . . . . 2 2 5 . . 18 17 15 9 6 5 . . . Highest-Rated Group 668 | . . . . . . . . . 58 58 259 . . 668 635 560 347 221 175 . . . Highest-Rated Ally 60 | . . . . . . . . . 29 29 60 . . 50 50 50 50 46 46 . . . Total Orders . | . . . . . . . . . . . . . . . . . . . . . . . Ally Attacks 267 | . . . . . . . . . . 7 16 . . 108 31 59 30 . 16 . . . Total Damage 8368 | . . . . . . . . . . 97 853 . . 3281 618 2093 1038 . 388 . . . Kills 31 | . . . . . . . . . . . 3 . . 5 4 12 6 . 1 . . . Allies Corrupted . | . . . . . . . . . . . . . . . . . . . . . . . Allies Melted 1 | . . . . . . . . . . . 1 . . . . . . . . . . . Intel | -11 -10 -10 -10 -9 -8 -7 -6 -5 -5 -5 -5 -4 -4 -4 -4 -4 -4 -4 -3 -3 -3 -3 ------- Run | Scr Mat Min Exi Min Mat Fac Fac Fac Upp Upp War Pro Fac Was Fac Upp Upp Zhi Pro Res Gar Res Robot Analysis Total 9 | . 2 . . . 3 . . . . . . . . . . . . 4 . . . . Derelict Logs Recovered 4 | . . . . . . . . . 2 . . . . . . 1 1 . . . . . Drone Launches . | . . . . . . . . . . . . . . . . . . . . . . . Drone Recoveries . | . . . . . . . . . . . . . . . . . . . . . . . Exploration | -11 -10 -10 -10 -9 -8 -7 -6 -5 -5 -5 -5 -4 -4 -4 -4 -4 -4 -4 -3 -3 -3 -3 ------------- Run | Scr Mat Min Exi Min Mat Fac Fac Fac Upp Upp War Pro Fac Was Fac Upp Upp Zhi Pro Res Gar Res Turns Passed 12906 | 89 733 80 713 479 649 671 462 1606 520 585 1073 362 577 881 301 810 441 468 462 618 47 279 Spaces Moved 7343 | 54 282 51 446 297 291 346 255 667 263 314 531 195 287 571 168 470 252 246 233 639 83 402 Core 822 | 21 . . . . . . . . . . . . . 151 . . . . . 237 83 330 Treads 6162 | 33 282 51 446 297 291 346 255 667 263 314 531 195 287 420 168 470 252 246 233 115 . . Legs . | . . . . . . . . . . . . . . . . . . . . . . . Wheels . | . . . . . . . . . . . . . . . . . . . . . . . Hover 5 | . . . . . . . . . . . . . . . . . . . . 5 . . Flight 354 | . . . . . . . . . . . . . . . . . . . . 282 . 72 Fastest Speed 32 | 50 160 160 160 160 160 160 160 160 161 163 163 168 164 50 165 165 165 165 165 32 50 32 Average Speed 144 | 117 160 160 160 160 172 160 160 160 161 163 163 168 166 134 165 165 165 165 165 63 50 47 Slowest Speed 185 | 160 160 160 160 160 180 160 160 162 163 164 168 168 168 185 165 165 165 165 165 165 50 60 Overloaded Moves . | . . . . . . . . . . . . . . . . . . . . . . . Propulsion Burnouts . | . . . . . . . . . . . . . . . . . . . . . . . Robots Hopped 9 | . . . . . . . . . . . . . . . . . . . . 8 . 1 Cave-ins Triggered . | . . . . . . . . . . . . . . . . . . . . . . . Teleports 1 | . . . . . . . . . . . . . . . . . . . . 1 . . Exploration Rate (%) 40 | 4 65 15 90 80 28 10 12 23 48 55 70 50 10 95 7 65 48 60 35 20 32 13 Regions Visited 22 Branch Regions 11 Pre-discovered Areas 4 | . 1 . . . . . . . . . . . . . . . . 3 . . . . Known Exits Taken 4 | . . . . . . . . 1 1 . . 1 . . . . . . . 1 . . Unknown Exits Taken 15 | 1 1 1 1 1 1 1 1 . . 1 1 . . . 1 1 1 1 1 . . . Scrap Searched 13 | . . 2 . 2 . . . . 3 3 . . . . . 1 1 . 1 . . . Spaces Dug 47 | . 10 . . . . . . 19 . . . . . . . . . . 4 3 . 11 Terrain Destroyed 364 | 4 21 . . . . . . 129 10 67 33 65 8 . 1 . 1 . 10 4 . 11 Melee 33 | . . . . . . . . 19 . . . . . . . . . . . 3 . 11 Projectile 23 | . . . . . . . . 1 . . 5 . 4 . 1 . 1 . 10 1 . . AOE 308 | 4 21 . . . . . . 109 10 67 28 65 4 . . . . . . . . . Actions | -11 -10 -10 -10 -9 -8 -7 -6 -5 -5 -5 -5 -4 -4 -4 -4 -4 -4 -4 -3 -3 -3 -3 --------- Run | Scr Mat Min Exi Min Mat Fac Fac Fac Upp Upp War Pro Fac Was Fac Upp Upp Zhi Pro Res Gar Res Total 8780 | 71 511 50 445 300 372 448 277 928 309 359 703 212 331 665 183 494 260 289 269 770 85 449 Wait 392 | . 151 . . . 11 45 2 51 1 . . 4 . 39 2 12 . 1 . 66 . 7 Move 7305 | 53 281 50 445 296 290 345 254 666 262 313 530 194 287 570 167 469 251 245 232 623 82 400 Hop 9 | . . . . . . . . . . . . . . . . . . . . 8 . 1 Pick Up 100 | 5 16 . . . 9 12 3 14 1 5 4 . 3 10 1 6 1 2 3 5 . . Fast Attach 107 | 7 3 . . . 3 4 . 8 3 5 9 1 5 15 1 . 1 9 2 21 . 10 Attach 47 | 1 . . . . 5 3 2 10 1 1 5 . 3 7 . . . 1 1 6 . 1 Detach 10 | . . . . . 1 . . . . . 1 . . 2 . . . . . 3 . 3 Swap 123 | . 14 . . 1 10 11 3 34 8 9 17 1 2 . 3 1 . 2 6 1 . . Drop 161 | 1 10 . . 1 9 18 1 27 5 10 24 1 8 11 5 2 1 10 9 7 . 1 Fire 353 | 3 34 . . . 32 10 11 97 23 16 20 11 21 11 4 4 6 19 16 15 . . Melee 60 | . . . . . . . . 19 . . . . . . . . . . . 15 1 25 Ram . | . . . . . . . . . . . . . . . . . . . . . . . Kick . | . . . . . . . . . . . . . . . . . . . . . . . Crush 15 | 1 2 . . 2 2 . 1 2 . . . . 2 . . . . . . . 2 1 Escape Stasis . | . . . . . . . . . . . . . . . . . . . . . . . Rewire 98 | . . . . . . . . . 5 . 93 . . . . . . . . . . . Trap . | . . . . . . . . . . . . . . . . . . . . . . . Miscellaneous . | . . . . . . . . . . . . . . . . . . . . . . . Route ------- -11/Scrapyard -10/Materials -10/Mines -10/Exiles (discovered 2 exits: [*Min x2]) -9/Mines -8/Materials -7/Factory -6/Factory -5/Factory (discovered 3 exits: *Fac / *Upp x2) -5/Upper Caves -5/Upper Caves (discovered 2 exits: Fac / *War) -5/Warlord -4/Proximity Caves -4/Factory -4/Waste -4/Factory -4/Upper Caves -4/Upper Caves (discovered 2 exits: *Res / *Zhi) -4/Zhirov -3/Proximity Caves -3/Research -3/Garrison -3/Research (discovered 3 exits: Res x3) History --------- Turn | Location | Event 3 | -11/Scrapyard | Discovered new exit (range 15) 90 | -11/Scrapyard | Entered Materials 301 | -10/Materials | Build established: Mutant 675 | -10/Materials | Repaired Lgt. Assault Rifle 702 | -10/Materials | Repaired Lgt. Treads 730 | -10/Materials | Repaired Lgt. Assault Rifle 757 | -10/Materials | Repaired Lgt. Assault Rifle 784 | -10/Materials | Repaired Lgt. Treads 807 | -10/Materials | Discovered new exit (range 11) 823 | -10/Materials | Entered Mines 827 | -10/Mines | Build established: Scavenger-Mutant 897 | -10/Mines | Deemed a non-threat by the Exiles lab entrance 897 | -10/Mines | Discovered new exit (range 5) 903 | -10/Mines | Entered Exiles 903 | -10/Exiles | Found Exiles lab abandoned 928 | -10/Exiles | Discovered new exit (range 15) 1598 | -10/Exiles | Discovered new exit (range 14) 1616 | -10/Exiles | Entered Mines 1927 | -9/Mines | Build established: Mutant 2082 | -9/Mines | Discovered new exit (range 8) 2095 | -9/Mines | Entered Materials 2095 | -8/Materials | Evolved 4 slots: Propulsion x1, Utility x1, Weapon x2 2691 | -8/Materials | Discovered new exit (range 15) 2744 | -8/Materials | Entered Factory 2744 | -7/Factory | Evolved 2 slots: Propulsion x1, Utility x1 2972 | -7/Factory | Build established: Scavenger-Tank 3019 | -7/Factory | Garrison activated, responded to threat 3388 | -7/Factory | Discovered new exit (range 8) 3400 | -7/Factory | Repaired Prc. Assault Rifle 3415 | -7/Factory | Entered another Factory area 3415 | -6/Factory | Evolved 2 slots: Propulsion x1, Weapon x1 3437 | -6/Factory | Build established: Tank 3840 | -6/Factory | Discovered new exit (range 2) 3877 | -6/Factory | Entered another Factory area 3877 | -5/Factory | Evolved 2 slots: Propulsion x1, Weapon x1 4107 | -5/Factory | Repaired Lgt. Treads 4311 | -5/Factory | Destroyed 8 combat bots 4414 | -5/Factory | Build established: Scavenger-Executioner 4477 | -5/Factory | First assault squad dispatched 4579 | -5/Factory | Garrison activated, responded to threat 4780 | -5/Factory | Identified exit to Upper Caves 4973 | -5/Factory | Spotted B-75 Beast 4985 | -5/Factory | Destroyed B-75 Beast 5059 | -5/Factory | Destroyed 8 combat bots 5348 | -5/Factory | Discovered new exit (range 16) 5483 | -5/Factory | Entered Upper Caves 5682 | -5/Upper Caves | Identified exit to Upper Caves 5742 | -5/Upper Caves | Attracted the attention of an 0b10 checkpoint 5878 | -5/Upper Caves | Attracted the attention of an 0b10 outpost 5927 | -5/Upper Caves | Encountered a Warlord checkpoint 5962 | -5/Upper Caves | Rewired Cogmind 5965 | -5/Upper Caves | Rewired Cogmind 5999 | -5/Upper Caves | Learned location of 1 exit from Upper Caves 6003 | -5/Upper Caves | Entered another Upper Caves area 6003 | -5/Upper Caves | Accompanied by 2 allies 6004 | -5/Upper Caves | Identified exit to Factory 6359 | -5/Upper Caves | Spotted B-75 Beast 6381 | -5/Upper Caves | Destroyed B-75 Beast 6572 | -5/Upper Caves | Discovered new exit (range 11) 6588 | -5/Upper Caves | Entered Warlord 6644 | -5/Warlord | System corruption cleaned by Quarantine Array 6763 | -5/Warlord | Build established: Scavenger-Mutant 6784 | -5/Warlord | Learned Factory fabricator intel 6844 | -5/Warlord | Received a Watcher feed algorithm from an ecstatic Tinkerer 6925 | -5/Warlord | Rewired Cogmind 6941 | -5/Warlord | Rewired Cogmind 6947 | -5/Warlord | Rewired Cogmind 6979 | -5/Warlord | Rewired Cogmind 7005 | -5/Warlord | Rewired Cogmind 7046 | -5/Warlord | Visited the Vortex Lab 7053 | -5/Warlord | Warlord's base attacked by MAIN.C 7064 | -5/Warlord | Met EX-DEC 7070 | -5/Warlord | Found Prototype Energy Cannon 7148 | -5/Warlord | Met Warlord 7164 | -5/Warlord | Identified BFG-9k Vortex Edition 7200 | -5/Warlord | Found Prototype Device 7200 | -5/Warlord | Identified System Purifier 7221 | -5/Warlord | Found Prototype Reactor 7403 | -5/Warlord | Warlord forces counterattacked 7463 | -5/Warlord | Build established: Scavenger-Executioner 7479 | -5/Warlord | Spotted Executioner 7497 | -5/Warlord | Spotted Executioner 7502 | -5/Warlord | Spotted Executioner 7508 | -5/Warlord | Spotted Executioner 7509 | -5/Warlord | Destroyed Executioner 7518 | -5/Warlord | Destroyed Executioner 7527 | -5/Warlord | Destroyed Executioner 7548 | -5/Warlord | Destroyed 8 combat bots 7555 | -5/Warlord | Spotted Striker 7556 | -5/Warlord | Spotted Striker 7566 | -5/Warlord | Spotted Executioner 7567 | -5/Warlord | Destroyed Striker 7582 | -5/Warlord | Destroyed Executioner 7596 | -5/Warlord | Found Prototype Processor 7605 | -5/Warlord | Destroyed 9 combat bots 7644 | -5/Warlord | Discovered new exit (range 12) 7661 | -5/Warlord | Entered Proximity Caves 7793 | -4/Proximity Caves | Attracted the attention of an 0b10 checkpoint 8005 | -4/Proximity Caves | Discovered exit to Factory (range 11) 8023 | -4/Proximity Caves | Entered Factory 8023 | -4/Factory | Evolved 2 slots: Power x1, Utility x1 8023 | -4/Factory | Identified Exp. Targeting Computer 8024 | -4/Factory | Loaded intel: 6 fabricator locations 8600 | -4/Factory | Sucked down chute 8600 | -4/Factory | Entered Waste 8798 | -4/Waste | Spotted C-40 Crusher 8812 | -4/Waste | Destroyed C-40 Crusher 8814 | -4/Waste | Spotted C-40 Crusher 8820 | -4/Waste | Spotted C-40 Crusher 8859 | -4/Waste | Crushed by Compactor (1 part destroyed, 1 dropped) 8863 | -4/Waste | Crushed by Compactor (1 part destroyed) 8867 | -4/Waste | Released all parts (11) 8874 | -4/Waste | Spotted C-40 Crusher 8876 | -4/Waste | Spotted C-40 Crusher 8932 | -4/Waste | Spotted C-40 Crusher 8949 | -4/Waste | Warlord forces began an assault 8959 | -4/Waste | Allies destroyed C-40 Crusher 8961 | -4/Waste | Allies destroyed C-40 Crusher 8969 | -4/Waste | Allies destroyed C-40 Crusher 8970 | -4/Waste | Allies destroyed C-40 Crusher 8973 | -4/Waste | Allies destroyed C-40 Crusher 9016 | -4/Waste | Found Damper Plating 9434 | -4/Waste | Discovered new exit (range 12) 9481 | -4/Waste | Entered Factory 9481 | -4/Factory | Accompanied by 17 allies 9686 | -4/Factory | P-70 Sage assimilated allied 2C-8IO(d) 9705 | -4/Factory | Discovered new exit (range 15) 9711 | -4/Factory | Found Exp. Targeting Computer 9782 | -4/Factory | Entered Upper Caves 9782 | -4/Upper Caves | Accompanied by 15 allies 10242 | -4/Upper Caves | Spotted B-86 Titan 10259 | -4/Upper Caves | Allies destroyed B-86 Titan 10429 | -4/Upper Caves | Learned Research interactive machine intel 10566 | -4/Upper Caves | Discovered new exit (range 14) 10592 | -4/Upper Caves | Entered another Upper Caves area 10592 | -4/Upper Caves | Accompanied by 9 allies 10627 | -4/Upper Caves | Discovered new exit (range 6) 11008 | -4/Upper Caves | Discovered new exit (range 9) 11017 | -4/Upper Caves | Learned 4 Research zone layouts 11033 | -4/Upper Caves | Entered Zhirov 11033 | -4/Zhirov | Accompanied by 6 allies 11033 | -4/Zhirov | Discovered new exit (range 3) 11063 | -4/Zhirov | Met Zhirov 11093 | -4/Zhirov | Learned location of Quarantine (-2) 11093 | -4/Zhirov | Learned location of Testing (-3) 11093 | -4/Zhirov | Learned location of Command (-1) 11109 | -4/Zhirov | Zhirov requested help retrieving the SGEMP Prototype 11135 | -4/Zhirov | Found Alien Artifact 11135 | -4/Zhirov | Identified Integrated Dissipator 11135 | -4/Zhirov | Installed Integrated Dissipator, increased core heat dissipation (+2%) 11164 | -4/Zhirov | Found Alien Artifact 11501 | -4/Zhirov | Entered Proximity Caves 11501 | -3/Proximity Caves | Accompanied by 6 allies 11503 | -3/Proximity Caves | Attracted the attention of an 0b10 checkpoint 11942 | -3/Proximity Caves | Discovered new exit (range 14) 11963 | -3/Proximity Caves | Entered Research 11963 | -3/Research | Evolved 2 slots: Utility x2 11965 | -3/Research | Loaded intel: 41 interactive machine locations 12070 | -3/Research | Identified Transdimensional Reconstructor 12070 | -3/Research | Warped through subspace 12271 | -3/Research | Released all parts (17) 12432 | -3/Research | Found Prototype Processor 12432 | -3/Research | Identified Exp. Signal Interpreter 12525 | -3/Research | Spotted B-86 Titan 12536 | -3/Research | Spotted B-86 Titan 12540 | -3/Research | Released all parts (9) 12543 | -3/Research | Core integrity fell below 50% 12581 | -3/Research | Identified exit to Garrison 12581 | -3/Research | Entered Garrison 12584 | -3/Garrison | Installed Relay Interface Framework 12605 | -3/Garrison | Triggered checkpoint 12625 | -3/Garrison | Discovered new exit (range 8) 12628 | -3/Garrison | Entered Research 12673 | -3/Research | Core integrity fell below 20% 12763 | -3/Research | Identified exit to Garrison 12823 | -3/Research | Build established: Mutant 12850 | -3/Research | Identified exit to Research 12907 | -3/Research | Destroyed by Y-72 Warden with Railgun Last Messages --------------- Downloaded map data. >>Trojan(Track) Trojan loaded successfully. Testing... Tracking enabled and active. 12853_ System corrupted: Component data lost. 12875_ Sneak attack on U-05 Engineer. 12875_ Destroyed Wheel. 12875_ U-05 Engineer destroyed. 12878_ LNMBEUPYV FQ:0GBL:TZO KHI2 12878_ Acquired 30 matter. 12885_ Acquired Unknown Processor. 12885_ Identified Imp. Salvage Targeting Computer. 12898_ Acquired Adv. Melee Analysis Suite. 12902_ System corrupted: Kinetic Spear targeting data glitched. 12904_ Cld. Nuclear Pulse Thruster destroyed. 12904_ Penetrated by Slug. 12904_ Slug penetrates Wall. 12906_ Slammed into T-07 Excavator. 12907_ Penetrated by Slug. Map ----- +----------------------------------------------------+ | ?????????# # #?????????????????????? | | ########## # % #?????????????????????? | | !! + #?????????????????????? | | ########## # #?????????????????????? | | ?????????# # #?????????????????????? | | ?????????## ###########???????????????????? | | ??????????# # #???????????????????? | | ??????????+ + #???????????????????? | | ??????????# # #???????????????????? | | ??????????# # #???????????????????? | | ??????????# #? #???????????????????? | | ??????????# #? #???????????????????? | | ??????????# #?? #???????????????????? | | ??????????# #?? #???????????????????? | | ??????????# ###########???????????????????? | | ??????????# # """" #???????????????????? | | ??????????# # """"" #???????????????????? | | ??????????# + """" #########?#?????????? | | ??????????# # """" # """" #?????????? | | ??????????# # !# ""S"" #?????????? | | ??????????# # # "" "" #?????????? | | ??????????# # # #?????????? | | ??????????# # # ! ##????????? | | ??????????# ##########; |||Y#????????? | | ??????????# #????????##t ! || #?????????? | | ??????????# ??????????#@ || #?????????? | | ??????????# ??????????##+########?????????? | | ??????????# ???????????? ???????????????? | | ??????????# ???????????? #??????????????? | | ??????????# ???????????? #??????????????? | | ??????????####????????????? ##??????????????? | | ??????????????????????????? #???????????????? | | ??????????????????????????? #???????????????? | | ???????????????????????????+#???????????????? | | ????????????????????????????????????????????? | | ???????????????????????????????????????